[Event "Live Chess"]
[Site "Chess.com"]
[Date "2023.05.21"]
[Round "-"]
[White "matt1979"]
[Black "ChessTWSS"]
[Result "1-0"]
[WhiteElo "1549"]
[BlackElo "1613"]
[TimeControl "300"]
[EndTime "3:21:43 PDT"]
[Termination "matt1979 won on time"]

1. f4 {[%clk 0:04:58.4]} 1... d5 {[%clk 0:04:53.6]} 2. e3 {[%clk 0:04:56.3]}
2... Bf5 {[%clk 0:04:49.7]} 3. Nf3 {[%clk 0:04:54]} 3... Nf6 {[%clk 0:04:45.6]}
4. b3 {[%clk 0:04:50.8]} 4... e6 {[%clk 0:04:39]} 5. Bb2 {[%clk 0:04:49.4]} 5...
Be7 {[%clk 0:04:29.9]} 6. d3 {[%clk 0:04:47.8]} 6... c5 {[%clk 0:04:24.6]} 7.
Ne5 {[%clk 0:04:46.2]} 7... Nbd7 {[%clk 0:04:09.1]} 8. Be2 {[%clk 0:04:41.1]}
8... h6 {[%clk 0:04:03]} 9. O-O {[%clk 0:04:35.2]} 9... Nxe5 {[%clk 0:03:58]}
10. Bxe5 {[%clk 0:04:25.8]} 10... b5 {[%clk 0:03:38.7]} 11. Bf3 {[%clk
0:04:14.7]} 11... c4 {[%clk 0:03:29.2]} 12. dxc4 {[%clk 0:04:10.7]} 12... bxc4
{[%clk 0:03:26]} 13. bxc4 {[%clk 0:04:09.5]} 13... Bc5 {[%clk 0:03:18.6]} 14.
Qe1 {[%clk 0:04:00.2]} 14... O-O {[%clk 0:03:03]} 15. Nc3 {[%clk 0:03:45.4]}
15... Qe7 {[%clk 0:02:50.8]} 16. cxd5 {[%clk 0:03:41.8]} 16... exd5 {[%clk
0:02:30.7]} 17. Nxd5 {[%clk 0:03:39.7]} 17... Nxd5 {[%clk 0:02:26.1]} 18. Bxd5
{[%clk 0:03:35.8]} 18... Rad8 {[%clk 0:02:20.8]} 19. Qg3 {[%clk 0:03:30.7]}
19... Bxe3+ {[%clk 0:02:14.1]} 20. Kh1 {[%clk 0:03:15]} 20... g6 {[%clk
0:01:58.9]} 21. Rad1 {[%clk 0:03:00.6]} 21... Bc5 {[%clk 0:01:41.2]} 22. Rfe1
{[%clk 0:02:47.5]} 22... Bb4 {[%clk 0:01:34.1]} 23. c3 {[%clk 0:02:39.8]} 23...
Bd6 {[%clk 0:01:27.2]} 24. Bg7 {[%clk 0:02:31.7]} 24... Qxe1+ {[%clk 0:01:17.5]}
25. Rxe1 {[%clk 0:02:30.1]} 25... Kxg7 {[%clk 0:01:17.4]} 26. Qf3 {[%clk
0:02:18.4]} 26... Bxf4 {[%clk 0:01:11.8]} 27. Bxf7 {[%clk 0:02:07.1]} 27... Bd2
{[%clk 0:01:03.4]} 28. Re7 {[%clk 0:01:41.8]} 28... Bg5 {[%clk 0:00:45.5]} 29.
Rxa7 {[%clk 0:01:34.3]} 29... Rxf7 {[%clk 0:00:40.5]} 30. Rxf7+ {[%clk
0:01:26.9]} 30... Kxf7 {[%clk 0:00:36.8]} 31. g4 {[%clk 0:01:24.5]} 31... Rd3
{[%clk 0:00:32.9]} 32. Qf1 {[%clk 0:01:20.1]} 32... Rxc3 {[%clk 0:00:28]} 33.
Kg2 {[%clk 0:01:11.1]} 33... Rc2+ {[%clk 0:00:24.4]} 34. Kg3 {[%clk 0:01:08.3]}
34... Rc1 {[%clk 0:00:18.8]} 35. Qf3 {[%clk 0:01:00.5]} 35... Rg1+ {[%clk
0:00:14.9]} 36. Kf2 {[%clk 0:00:54.1]} 36... Rxg4 {[%clk 0:00:12]} 37. Qb7+
{[%clk 0:00:49.1]} 37... Kf6 {[%clk 0:00:10.3]} 38. Qc6+ {[%clk 0:00:46.7]}
38... Be6 {[%clk 0:00:09.1]} 39. Qc3+ {[%clk 0:00:44.1]} 39... Kf7 {[%clk
0:00:06.9]} 40. Qc7+ {[%clk 0:00:39.3]} 40... Kf6 {[%clk 0:00:05.6]} 41. Qc3+
{[%clk 0:00:37.6]} 41... Kf7 {[%clk 0:00:05.5]} 42. Qf3+ {[%clk 0:00:36.1]}
42... Rf4 {[%clk 0:00:01.8]} 43. Qxf4+ {[%clk 0:00:32.4]} 43... Ke7 {[%clk
0:00:01]} 44. Qb4+ {[%clk 0:00:29.5]} 1-0

[Event "Live Chess"]
[Site "Chess.com"]
[Date "2023.05.21"]
[Round "-"]
[White "lateforthesky"]
[Black "peter-785"]
[Result "1-0"]
[WhiteElo "2106"]
[BlackElo "1183"]
[TimeControl "300"]
[EndTime "3:21:53 PDT"]
[Termination "lateforthesky won by resignation"]

1. e4 {[%clk 0:04:58.2]} 1... c5 {[%clk 0:04:58.7]} 2. d4 {[%clk 0:04:56]} 2...
d6 {[%clk 0:04:58.6]} 3. dxc5 {[%clk 0:04:54.3]} 3... e6 {[%clk 0:04:52.2]} 4.
cxd6 {[%clk 0:04:52.4]} 4... Bxd6 {[%clk 0:04:49.7]} 5. Nc3 {[%clk 0:04:50.6]}
5... a6 {[%clk 0:04:46.1]} 6. Nf3 {[%clk 0:04:49.5]} 6... Nf6 {[%clk 0:04:43.8]}
7. Bd3 {[%clk 0:04:47.9]} 7... O-O {[%clk 0:04:41]} 8. e5 {[%clk 0:04:43.5]}
8... Ng4 {[%clk 0:04:28.8]} 9. exd6 {[%clk 0:04:41.2]} 9... Qb6 {[%clk
0:04:26.7]} 10. O-O {[%clk 0:04:38.7]} 10... Qxd6 {[%clk 0:04:23.5]} 11. Bxh7+
{[%clk 0:04:36.3]} 1-0

[Event "Live Chess"]
[Site "Chess.com"]
[Date "2023.05.21"]
[Round "-"]
[White "AttackingSnowLeopard"]
[Black "LL220284LL"]
[Result "1/2-1/2"]
[WhiteElo "2200"]
[BlackElo "2319"]
[TimeControl "300"]
[EndTime "3:22:05 PDT"]
[Termination "Game drawn - insufficient material"]

1. d4 {[%clk 0:04:58.2]} 1... Nf6 {[%clk 0:04:58.7]} 2. c4 {[%clk 0:04:57.5]}
2... e6 {[%clk 0:04:57.8]} 3. Nf3 {[%clk 0:04:56]} 3... d5 {[%clk 0:04:56]} 4.
Nc3 {[%clk 0:04:54.6]} 4... Be7 {[%clk 0:04:51.9]} 5. Bg5 {[%clk 0:04:52.6]}
5... O-O {[%clk 0:04:51.1]} 6. e3 {[%clk 0:04:51.7]} 6... h6 {[%clk 0:04:49.1]}
7. Bh4 {[%clk 0:04:50.4]} 7... Nbd7 {[%clk 0:04:48]} 8. Rc1 {[%clk 0:04:48.7]}
8... c6 {[%clk 0:04:46.8]} 9. Be2 {[%clk 0:04:46.4]} 9... dxc4 {[%clk
0:04:45.3]} 10. Bxc4 {[%clk 0:04:45.2]} 10... b6 {[%clk 0:04:45]} 11. O-O {[%clk
0:04:43.3]} 11... Bb7 {[%clk 0:04:43.9]} 12. e4 {[%clk 0:04:38.7]} 12... c5
{[%clk 0:04:42]} 13. e5 {[%clk 0:03:25.6]} 13... Ne4 {[%clk 0:04:08.2]} 14. Bxe7
{[%clk 0:03:21.7]} 14... Qxe7 {[%clk 0:04:08.1]} 15. d5 {[%clk 0:03:16.2]} 15...
Nxc3 {[%clk 0:04:05.2]} 16. Rxc3 {[%clk 0:03:13.8]} 16... exd5 {[%clk
0:04:01.9]} 17. Bxd5 {[%clk 0:03:13.3]} 17... Bxd5 {[%clk 0:04:01.4]} 18. Qxd5
{[%clk 0:03:12.4]} 18... Rad8 {[%clk 0:04:00.8]} 19. Re1 {[%clk 0:02:58.8]}
19... Rfe8 {[%clk 0:03:52.3]} 20. Rce3 {[%clk 0:02:52.6]} 20... Nf8 {[%clk
0:03:48.1]} 21. Qc4 {[%clk 0:02:50.6]} 21... Ne6 {[%clk 0:03:44.9]} 22. Re4
{[%clk 0:02:45.6]} 22... Rd7 {[%clk 0:03:41.8]} 23. h3 {[%clk 0:02:37.9]} 23...
Red8 {[%clk 0:03:40]} 24. Nh4 {[%clk 0:02:33.1]} 24... Rd1 {[%clk 0:03:35]} 25.
Nf5 {[%clk 0:02:29]} 25... Qg5 {[%clk 0:03:33.6]} 26. Nd6 {[%clk 0:02:16]} 26...
Rxe1+ {[%clk 0:03:26.6]} 27. Rxe1 {[%clk 0:02:00.5]} 27... Rd7 {[%clk
0:03:22.4]} 28. g3 {[%clk 0:01:41.8]} 28... Nd4 {[%clk 0:03:17]} 29. Qd5 {[%clk
0:01:39.6]} 29... Re7 {[%clk 0:03:10.8]} 30. Qa8+ {[%clk 0:01:38]} 30... Kh7
{[%clk 0:03:09]} 31. Qe4+ {[%clk 0:01:37.1]} 31... Qg6 {[%clk 0:03:06.9]} 32.
Qd5 {[%clk 0:01:33.1]} 32... Qe6 {[%clk 0:03:01.1]} 33. Qe4+ {[%clk 0:01:31.4]}
33... Qg6 {[%clk 0:02:59.8]} 34. Qd5 {[%clk 0:01:30.4]} 34... Re6 {[%clk
0:02:52.5]} 35. Kh2 {[%clk 0:01:27.6]} 35... Qc2 {[%clk 0:02:50.6]} 36. Qe4+
{[%clk 0:01:23.6]} 36... Qxe4 {[%clk 0:02:49.2]} 37. Rxe4 {[%clk 0:01:23.5]}
37... Rxe5 {[%clk 0:02:47.4]} 38. Rxe5 {[%clk 0:01:20.1]} 38... Nf3+ {[%clk
0:02:46.8]} 39. Kg2 {[%clk 0:01:19.3]} 39... Nxe5 {[%clk 0:02:46.7]} 40. Nc8
{[%clk 0:01:18.6]} 40... Nc6 {[%clk 0:02:45.7]} 41. Kf3 {[%clk 0:01:17]} 41...
f5 {[%clk 0:02:41.2]} 42. Kf4 {[%clk 0:01:08.2]} 42... Kg6 {[%clk 0:02:39.2]}
43. Nd6 {[%clk 0:01:06.8]} 43... Ne7 {[%clk 0:02:27.6]} 44. Ke5 {[%clk
0:01:04.3]} 44... Nc6+ {[%clk 0:02:25.2]} 45. Ke6 {[%clk 0:00:58]} 45... Nd4+
{[%clk 0:02:22]} 46. Kd5 {[%clk 0:00:57.5]} 46... Kf6 {[%clk 0:02:16.9]} 47. Nc8
{[%clk 0:00:56.4]} 47... Nf3 {[%clk 0:02:05.9]} 48. Nxa7 {[%clk 0:00:55.2]}
48... Ng1 {[%clk 0:02:05.2]} 49. Nc8 {[%clk 0:00:54.5]} 49... Nxh3 {[%clk
0:02:04.4]} 50. Nxb6 {[%clk 0:00:54.2]} 50... Nxf2 {[%clk 0:02:03.7]} 51. a4
{[%clk 0:00:52.8]} 51... Ke7 {[%clk 0:01:58.8]} 52. a5 {[%clk 0:00:50.8]} 52...
Kd8 {[%clk 0:01:57.7]} 53. Kc6 {[%clk 0:00:50.3]} 53... Nd3 {[%clk 0:01:55.1]}
54. a6 {[%clk 0:00:40.6]} 54... Nb4+ {[%clk 0:01:54.2]} 55. Kb7 {[%clk
0:00:40.4]} 55... Nxa6 {[%clk 0:01:54.1]} 56. Kxa6 {[%clk 0:00:40]} 56... g5
{[%clk 0:01:52]} 57. Nd5 {[%clk 0:00:39.2]} 57... h5 {[%clk 0:01:49.3]} 58. Ne3
{[%clk 0:00:37.8]} 58... f4 {[%clk 0:01:48]} 59. gxf4 {[%clk 0:00:37.3]} 59...
gxf4 {[%clk 0:01:47.9]} 60. Nf1 {[%clk 0:00:35.4]} 60... Kc7 {[%clk 0:01:43.9]}
61. Kb5 {[%clk 0:00:34.7]} 61... Kd6 {[%clk 0:01:43.3]} 62. Kc4 {[%clk 0:00:34]}
62... Kc6 {[%clk 0:01:42.5]} 63. Kd3 {[%clk 0:00:30.9]} 63... Kd5 {[%clk
0:01:40.6]} 64. b3 {[%clk 0:00:28.9]} 64... h4 {[%clk 0:01:39.6]} 65. Nh2 {[%clk
0:00:28]} 65... h3 {[%clk 0:01:38.2]} 66. Nf3 {[%clk 0:00:27.6]} 66... Kc6
{[%clk 0:01:36.5]} 67. Kc4 {[%clk 0:00:26.2]} 67... Kb6 {[%clk 0:01:35.7]} 68.
b4 {[%clk 0:00:24.1]} 68... cxb4 {[%clk 0:01:34.8]} 69. Kxb4 {[%clk 0:00:23.7]}
69... Kc6 {[%clk 0:01:34.7]} 70. Kc4 {[%clk 0:00:23.1]} 70... Kd6 {[%clk
0:01:34.6]} 71. Kd4 {[%clk 0:00:22.5]} 71... Ke6 {[%clk 0:01:33.6]} 72. Ke4
{[%clk 0:00:21.8]} 72... h2 {[%clk 0:01:33.1]} 73. Nxh2 {[%clk 0:00:20.3]} 73...
f3 {[%clk 0:01:33]} 74. Nxf3 {[%clk 0:00:19.6]} 1/2-1/2

[Event "Live Chess"]
[Site "Chess.com"]
[Date "2023.05.21"]
[Round "-"]
[White "Berdgross"]
[Black "MMmaaxxxx"]
[Result "1/2-1/2"]
[WhiteElo "670"]
[BlackElo "2020"]
[TimeControl "300"]
[EndTime "3:22:07 PDT"]
[Termination "Game drawn by repetition"]

1. e4 {[%clk 0:04:58.3]} 1... c6 {[%clk 0:04:59]} 2. d4 {[%clk 0:04:56.9]} 2...
d5 {[%clk 0:04:58.9]} 3. exd5 {[%clk 0:04:55.4]} 3... cxd5 {[%clk 0:04:58.8]} 4.
Nc3 {[%clk 0:04:51.1]} 4... Nc6 {[%clk 0:04:57.4]} 5. Bb5 {[%clk 0:04:49.8]}
5... Nf6 {[%clk 0:04:55.8]} 6. Nf3 {[%clk 0:04:47.3]} 6... Bg4 {[%clk
0:04:54.7]} 7. h3 {[%clk 0:04:45.2]} 7... Bxf3 {[%clk 0:04:53.5]} 8. Qxf3 {[%clk
0:04:44.8]} 8... e6 {[%clk 0:04:44.3]} 9. Bxc6+ {[%clk 0:04:43.1]} 9... bxc6
{[%clk 0:04:43.5]} 10. O-O {[%clk 0:04:39.6]} 10... Be7 {[%clk 0:04:37.4]} 11.
Bg5 {[%clk 0:04:38.7]} 11... h6 {[%clk 0:04:35.8]} 12. Bxf6 {[%clk 0:04:37.4]}
12... Bxf6 {[%clk 0:04:29.8]} 13. Rfe1 {[%clk 0:04:32.9]} 13... O-O {[%clk
0:04:26.6]} 14. Na4 {[%clk 0:04:25.1]} 14... Bxd4 {[%clk 0:04:23.1]} 15. Qg4
{[%clk 0:04:17.4]} 15... Bf6 {[%clk 0:04:14.4]} 16. Nc5 {[%clk 0:04:11.6]} 16...
Qb6 {[%clk 0:04:12.6]} 17. Nd7 {[%clk 0:04:07.4]} 17... Qxb2 {[%clk 0:04:09.6]}
18. Nxf6+ {[%clk 0:04:00.6]} 18... Qxf6 {[%clk 0:04:08.5]} 19. Qg3 {[%clk
0:03:32.5]} 19... c5 {[%clk 0:03:54.1]} 20. c3 {[%clk 0:03:28.9]} 20... Rab8
{[%clk 0:03:51.9]} 21. Reb1 {[%clk 0:03:25]} 21... Qf5 {[%clk 0:03:42]} 22. Rxb8
{[%clk 0:03:19.2]} 22... e5 {[%clk 0:03:20.5]} 23. Rxf8+ {[%clk 0:03:14.6]}
23... Kxf8 {[%clk 0:03:19.6]} 24. Rd1 {[%clk 0:03:05.6]} 24... d4 {[%clk
0:03:18]} 25. cxd4 {[%clk 0:03:03.9]} 25... cxd4 {[%clk 0:03:09.2]} 26. Rc1
{[%clk 0:02:59.1]} 26... f6 {[%clk 0:03:03.3]} 27. a4 {[%clk 0:02:54.6]} 27...
Qd7 {[%clk 0:02:55.5]} 28. Qa3+ {[%clk 0:02:52.7]} 28... Kf7 {[%clk 0:02:53.4]}
29. Qb3+ {[%clk 0:02:44.2]} 29... Kg6 {[%clk 0:02:51.5]} 30. Qd3+ {[%clk
0:02:39.2]} 30... Kf7 {[%clk 0:02:47.5]} 31. Qb3+ {[%clk 0:02:37.8]} 31... Kg6
{[%clk 0:02:39]} 32. Qd3+ {[%clk 0:02:36.5]} 32... Kf7 {[%clk 0:02:37.9]} 33.
Qb3+ {[%clk 0:02:35.5]} 1/2-1/2

[Event "Live Chess"]
[Site "Chess.com"]
[Date "2023.05.21"]
[Round "-"]
[White "WilliamofOrange16th"]
[Black "FMOlexandrProhorov"]
[Result "0-1"]
[WhiteElo "1873"]
[BlackElo "2185"]
[TimeControl "300"]
[EndTime "3:22:10 PDT"]
[Termination "FMOlexandrProhorov won by resignation"]

1. e4 {[%clk 0:04:57.4]} 1... c5 {[%clk 0:04:59.3]} 2. Nc3 {[%clk 0:04:54.8]}
2... Nc6 {[%clk 0:04:57.7]} 3. f4 {[%clk 0:04:53.9]} 3... g6 {[%clk 0:04:57.3]}
4. Nf3 {[%clk 0:04:53.2]} 4... Bg7 {[%clk 0:04:56.8]} 5. Bc4 {[%clk 0:04:52.7]}
5... d6 {[%clk 0:04:56]} 6. d3 {[%clk 0:04:51.4]} 6... a6 {[%clk 0:04:55.1]} 7.
a4 {[%clk 0:04:49.6]} 7... e6 {[%clk 0:04:50.3]} 8. O-O {[%clk 0:04:47.9]} 8...
Nge7 {[%clk 0:04:50]} 9. f5 {[%clk 0:04:42.7]} 9... Nd4 {[%clk 0:04:48.3]} 10.
Nxd4 {[%clk 0:04:40.5]} 10... Bxd4+ {[%clk 0:04:45.1]} 11. Kh1 {[%clk
0:04:39.5]} 11... gxf5 {[%clk 0:04:44.6]} 12. Bg5 {[%clk 0:04:32.9]} 12... Qc7
{[%clk 0:04:38.2]} 13. Qe2 {[%clk 0:04:23.3]} 13... Rg8 {[%clk 0:04:33.3]} 14.
Bh4 {[%clk 0:04:21.9]} 14... Bxc3 {[%clk 0:04:21.7]} 15. bxc3 {[%clk 0:04:20.2]}
15... fxe4 {[%clk 0:04:21.3]} 16. dxe4 {[%clk 0:04:17.9]} 16... Bd7 {[%clk
0:04:12.2]} 17. Qh5 {[%clk 0:04:10.6]} 17... Ng6 {[%clk 0:04:09.2]} 18. Qxh7
{[%clk 0:04:03]} 18... Rf8 {[%clk 0:04:06.5]} 19. Bf6 {[%clk 0:04:00.2]} 19...
Bc6 {[%clk 0:04:01.3]} 20. Bd3 {[%clk 0:03:57.2]} 20... c4 {[%clk 0:03:59.8]}
21. Be2 {[%clk 0:03:53.8]} 21... Bxe4 {[%clk 0:03:58.8]} 22. Qh3 {[%clk
0:03:46.1]} 22... Kd7 {[%clk 0:03:51.6]} 23. Bf3 {[%clk 0:03:36.4]} 23... Bf5
{[%clk 0:03:48.1]} 24. Qh6 {[%clk 0:03:31.1]} 24... d5 {[%clk 0:03:41.9]} 25. h3
{[%clk 0:03:26.1]} 25... Rh8 {[%clk 0:03:37.5]} 26. Bxh8 {[%clk 0:03:24.8]}
26... Rxh8 {[%clk 0:03:37.4]} 27. Qe3 {[%clk 0:03:01.5]} 27... Qg3 {[%clk
0:03:27.9]} 28. Qf2 {[%clk 0:02:55.8]} 28... Qg5 {[%clk 0:03:24.7]} 29. Rab1
{[%clk 0:02:47.6]} 29... Bxh3 {[%clk 0:02:45.7]} 30. Rxb7+ {[%clk 0:02:21.8]}
30... Kd6 {[%clk 0:02:41.3]} 31. Qb6+ {[%clk 0:02:06]} 31... Ke5 {[%clk
0:02:33.9]} 32. Qd4+ {[%clk 0:02:04.5]} 32... Kd6 {[%clk 0:02:29.7]} 33. Qb6+
{[%clk 0:01:52.4]} 33... Ke5 {[%clk 0:02:23.1]} 34. Re1+ {[%clk 0:01:50.3]}
34... Kf6 {[%clk 0:02:19.6]} 35. Qd4+ {[%clk 0:01:10.1]} 35... e5 {[%clk
0:02:16.9]} 36. Qb6+ {[%clk 0:01:04.9]} 36... Kg7 {[%clk 0:02:13.3]} 37. Kg1
{[%clk 0:01:01.3]} 37... Be6 {[%clk 0:02:06.7]} 38. Qxe6 {[%clk 0:00:52.9]}
38... Rf8 {[%clk 0:01:55.4]} 39. Qxd5 {[%clk 0:00:48.2]} 39... Kg8 {[%clk
0:01:47.6]} 40. Qxc4 {[%clk 0:00:43.8]} 40... Nf4 {[%clk 0:01:45.5]} 41. Kf2
{[%clk 0:00:40.8]} 41... Qh4+ {[%clk 0:01:44.1]} 42. g3 {[%clk 0:00:31.5]} 42...
Nh3+ {[%clk 0:01:37.4]} 43. Ke3 {[%clk 0:00:30.7]} 43... Qxc4 {[%clk 0:01:36.5]}
0-1

[Event "Live Chess"]
[Site "Chess.com"]
[Date "2023.05.21"]
[Round "-"]
[White "RockTroll"]
[Black "JohanKjeldahl"]
[Result "1-0"]
[WhiteElo "2229"]
[BlackElo "1892"]
[TimeControl "300"]
[EndTime "3:22:13 PDT"]
[Termination "RockTroll won by resignation"]

1. Nf3 {[%clk 0:04:58.5]} 1... Nf6 {[%clk 0:04:58.7]} 2. g3 {[%clk 0:04:57.8]}
2... d5 {[%clk 0:04:57.1]} 3. Bg2 {[%clk 0:04:57.1]} 3... c6 {[%clk 0:04:56.4]}
4. O-O {[%clk 0:04:56.5]} 4... g6 {[%clk 0:04:54.7]} 5. b3 {[%clk 0:04:56]} 5...
Bg7 {[%clk 0:04:54.3]} 6. Bb2 {[%clk 0:04:55.5]} 6... O-O {[%clk 0:04:53.7]} 7.
c4 {[%clk 0:04:54.2]} 7... Bg4 {[%clk 0:04:47.3]} 8. d3 {[%clk 0:04:52.8]} 8...
Nbd7 {[%clk 0:04:45.6]} 9. Nbd2 {[%clk 0:04:51.5]} 9... Rc8 {[%clk 0:04:42.5]}
10. h3 {[%clk 0:04:47.1]} 10... Bxf3 {[%clk 0:04:40.3]} 11. Nxf3 {[%clk
0:04:46.2]} 11... e5 {[%clk 0:04:37.8]} 12. Nxe5 {[%clk 0:04:41.6]} 12... Nxe5
{[%clk 0:04:33]} 13. Bxe5 {[%clk 0:04:39.9]} 13... Re8 {[%clk 0:04:29.1]} 14.
Bb2 {[%clk 0:04:37.4]} 14... dxc4 {[%clk 0:04:26.5]} 15. bxc4 {[%clk 0:04:34.9]}
15... Qb6 {[%clk 0:04:24.3]} 16. Rb1 {[%clk 0:04:33.9]} 16... Qa5 {[%clk
0:04:21]} 17. a3 {[%clk 0:04:21.6]} 17... Re7 {[%clk 0:04:09.9]} 18. Qc2 {[%clk
0:03:53.2]} 18... Rce8 {[%clk 0:04:06.1]} 19. Bc3 {[%clk 0:03:51.1]} 19... Qxa3
{[%clk 0:03:56.5]} 20. Bb4 {[%clk 0:03:50]} 20... Qa6 {[%clk 0:03:38.3]} 21.
Bxe7 {[%clk 0:03:48.4]} 21... Rxe7 {[%clk 0:03:37.6]} 22. Ra1 {[%clk 0:03:44.1]}
22... Qb6 {[%clk 0:03:35.9]} 23. Rfb1 {[%clk 0:03:43.6]} 23... Qc5 {[%clk
0:03:30.1]} 24. e3 {[%clk 0:03:29.5]} 24... Nh5 {[%clk 0:03:25.9]} 25. d4 {[%clk
0:03:28.1]} 25... Qd6 {[%clk 0:03:14]} 26. Rxa7 {[%clk 0:03:26.7]} 26... Nxg3
{[%clk 0:03:10.6]} 27. fxg3 {[%clk 0:03:19.9]} 27... Qxg3 {[%clk 0:03:09.7]} 28.
Qf2 {[%clk 0:03:16.7]} 28... Qxe3 {[%clk 0:03:03]} 29. Qxe3 {[%clk 0:03:15.2]}
29... Rxe3 {[%clk 0:03:02]} 30. Ra8+ {[%clk 0:03:13.1]} 1-0

[Event "Live Chess"]
[Site "Chess.com"]
[Date "2023.05.21"]
[Round "-"]
[White "ranvir123"]
[Black "JoshMcK"]
[Result "0-1"]
[WhiteElo "960"]
[BlackElo "1521"]
[TimeControl "300"]
[EndTime "3:22:17 PDT"]
[Termination "JoshMcK won by resignation"]

1. e4 {[%clk 0:04:57.5]} 1... c6 {[%clk 0:04:57.1]} 2. d4 {[%clk 0:04:55.4]}
2... d5 {[%clk 0:04:57]} 3. e5 {[%clk 0:04:54.9]} 3... c5 {[%clk 0:04:55.8]} 4.
Nf3 {[%clk 0:04:54.1]} 4... Bg4 {[%clk 0:04:50]} 5. Bb5+ {[%clk 0:04:53.3]} 5...
Nd7 {[%clk 0:04:47.9]} 6. h3 {[%clk 0:04:50.7]} 6... Bxf3 {[%clk 0:04:46.4]} 7.
Qxf3 {[%clk 0:04:50.1]} 7... e6 {[%clk 0:04:43.3]} 8. dxc5 {[%clk 0:04:48.6]}
8... a6 {[%clk 0:04:41.7]} 9. Bxd7+ {[%clk 0:04:46.7]} 9... Qxd7 {[%clk
0:04:41.6]} 10. Nc3 {[%clk 0:04:45]} 10... Ne7 {[%clk 0:04:38.2]} 11. Be3 {[%clk
0:04:44.2]} 11... Ng6 {[%clk 0:04:36.4]} 12. O-O-O {[%clk 0:04:40.8]} 12... Nxe5
{[%clk 0:04:31.5]} 13. Qf4 {[%clk 0:04:33]} 13... Ng6 {[%clk 0:04:19.6]} 14. Qg3
{[%clk 0:04:25.8]} 14... Be7 {[%clk 0:04:16.4]} 15. Bg5 {[%clk 0:04:23.9]} 15...
O-O {[%clk 0:04:13]} 16. Bxe7 {[%clk 0:04:19.2]} 16... Qxe7 {[%clk 0:04:12]} 17.
Rhe1 {[%clk 0:04:16.7]} 17... Qxc5 {[%clk 0:04:10.3]} 18. Kb1 {[%clk 0:04:07.2]}
18... b5 {[%clk 0:04:03.5]} 19. a3 {[%clk 0:04:02.5]} 19... a5 {[%clk
0:04:00.7]} 20. b4 {[%clk 0:03:59.9]} 20... axb4 {[%clk 0:03:58.3]} 21. axb4
{[%clk 0:03:54.8]} 21... Qxb4+ {[%clk 0:03:53.2]} 22. Kc1 {[%clk 0:03:54.2]}
22... Ra1+ {[%clk 0:03:47.8]} 23. Kd2 {[%clk 0:03:52.8]} 23... Rxd1+ {[%clk
0:03:39.3]} 24. Rxd1 {[%clk 0:03:49.4]} 24... d4 {[%clk 0:03:38.6]} 25. Rb1
{[%clk 0:03:39.3]} 25... dxc3+ {[%clk 0:03:31.6]} 26. Kc1 {[%clk 0:03:36.7]}
26... Qf4+ {[%clk 0:03:28.3]} 27. Qxf4 {[%clk 0:03:34]} 27... Nxf4 {[%clk
0:03:28.2]} 0-1

[Event "Live Chess"]
[Site "Chess.com"]
[Date "2023.05.21"]
[Round "-"]
[White "Trendle"]
[Black "DfNn"]
[Result "1-0"]
[WhiteElo "2658"]
[BlackElo "1547"]
[TimeControl "300"]
[EndTime "3:22:21 PDT"]
[Termination "Trendle won by resignation"]

1. e4 {[%clk 0:04:56]} 1... e5 {[%clk 0:04:58.9]} 2. Nf3 {[%clk 0:04:54]} 2...
Nc6 {[%clk 0:04:57.1]} 3. Bb5 {[%clk 0:04:51.6]} 3... Bc5 {[%clk 0:04:55.2]} 4.
O-O {[%clk 0:04:47.3]} 4... Nf6 {[%clk 0:04:52.2]} 5. c3 {[%clk 0:04:46.3]} 5...
O-O {[%clk 0:04:49.5]} 6. d4 {[%clk 0:04:45.3]} 6... exd4 {[%clk 0:04:46.8]} 7.
cxd4 {[%clk 0:04:43.6]} 7... Bb6 {[%clk 0:04:45]} 8. Nc3 {[%clk 0:04:40.4]} 8...
d5 {[%clk 0:04:42.3]} 9. Bg5 {[%clk 0:04:32.8]} 9... h6 {[%clk 0:04:35.1]} 10.
Bxf6 {[%clk 0:04:29.5]} 10... Qxf6 {[%clk 0:04:30.7]} 11. Nxd5 {[%clk
0:04:28.1]} 11... Qd8 {[%clk 0:04:27.4]} 12. Bxc6 {[%clk 0:04:21.3]} 12... bxc6
{[%clk 0:04:24.9]} 13. Ne3 {[%clk 0:04:20.2]} 13... c5 {[%clk 0:04:23.4]} 14. d5
{[%clk 0:04:17.1]} 14... c6 {[%clk 0:04:21.6]} 15. dxc6 {[%clk 0:04:13.5]} 15...
Qxd1 {[%clk 0:04:19.4]} 16. Rfxd1 {[%clk 0:04:13.4]} 16... Be6 {[%clk
0:04:17.8]} 17. Nd5 {[%clk 0:04:10.2]} 17... Rac8 {[%clk 0:04:15.3]} 18. Ne7+
{[%clk 0:04:09]} 18... Kh7 {[%clk 0:04:12.6]} 19. Nxc8 {[%clk 0:04:08.9]} 19...
Rxc8 {[%clk 0:04:10.9]} 20. a4 {[%clk 0:04:05.6]} 20... Rxc6 {[%clk 0:04:09.7]}
21. Ne5 {[%clk 0:04:01.8]} 21... Rc7 {[%clk 0:04:06.7]} 22. a5 {[%clk
0:04:00.4]} 1-0